fUSD/lending_fUSD_20240714
["ID","MTS","AMOUNT","RATE_DAILY","PERIOD"]
[332063724,1720947059741,-500.0,0.00013808,2]
[332063725,1720947059752,-500.0,0.00013808,2]
[332063726,1720947059762,-500.0,0.00013808,2]
[332063727,1720947059771,-500.0,0.00013808,2]
[332063728,1720947059781,-890.99,0.00013808,2]
[332063729,1720947059791,-1261.33,0.00013808,2]
[332063730,1720947059800,-500.0,0.00013808,2]
[332063731,1720947059810,-151.0,0.00013808,2]
[332063732,1720947059819,-500.0,0.00013808,2]
[332063733,1720947059828,-500.0,0.00013808,2]
[332063734,1720947059838,-500.0,0.00013808,2]
[332063735,1720947059848,-500.0,0.00013808,2]
[332063736,1720947059858,-733.78,0.00013808,2]
[332063737,1720947059867,-651.47,0.00013808,2]
[332063738,1720947059877,-500.0,0.00013808,2]
[332063739,1720947059886,-500.0,0.00013808,2]
[332063740,1720947059896,-1112.55,0.00013808,2]
[332063741,1720947059905,-500.0,0.00013808,2]
[332063742,1720947059916,-963.11,0.00013808,2]
[332063743,1720947059925,-500.0,0.00013808,2]
[332063744,1720947059935,-642.95,0.00013808,2]
[332063745,1720947059944,-500.0,0.00013808,2]
[332063746,1720947059954,-500.0,0.00013808,2]
[332063747,1720947059963,-151.0,0.00013808,2]
[332063748,1720947059973,-645.385632,0.00013808,2]
[332063749,1720947059982,-500.0,0.00013808,2]
[332063750,1720947059992,-558.4,0.00013808,2]
[332063751,1720947060003,-500.0,0.00013808,2]
[332063752,1720947060012,-207.97384251,0.00013808,2]
[332063753,1720947060022,-500.0,0.00013808,2]
[332063754,1720947060031,-500.0,0.00013808,2]
[332063755,1720947060040,-500.0,0.00013808,2]
[332063756,1720947060050,-500.0,0.00013808,2]
[332063757,1720947060059,-821.37,0.00013808,2]
[332063758,1720947060069,-624.35549128,0.00013808,2]
[332063759,1720947060078,-1109.67,0.00013808,2]
[332063760,1720947060088,-314.66888276,0.00013808,2]
[332063761,1720947060097,-557.08,0.00013808,2]
[332063762,1720947060107,-500.0,0.00013808,2]
[332063763,1720947060116,-500.0,0.00013808,2]
[332063764,1720947060126,-151.0,0.00013808,2]
[332063765,1720947060135,-527.01,0.00013808,2]
[332063766,1720947060146,-502.58444241,0.00013808,2]
[332063767,1720947060156,-971.77,0.00013808,2]
[332063768,1720947060165,-151.0,0.00013808,2]
[332063769,1720947060174,-557.72,0.00013808,2]
[332063770,1720947060184,-550.95765775,0.00013808,2]
[332063771,1720947060193,-500.0,0.00013808,2]
[332063772,1720947060203,-500.0,0.00013808,2]
[332063773,1720947060212,-500.0,0.00013808,2]
[332063774,1720947060222,-500.0,0.00013808,2]
[332063775,1720947060231,-500.0,0.00013808,2]
[332063776,1720947060241,-151.0,0.00013808,2]
[332063777,1720947060252,-500.0,0.00013808,2]
[332063778,1720947060262,-546.97,0.00013808,2]
[332063779,1720947060271,-500.0,0.00013808,2]
[332063780,1720947060281,-1415.22,0.00013808,2]
[332063781,1720947060290,-995.56,0.00013808,2]
[332063782,1720947060300,-500.0,0.00013808,2]
[332063783,1720947060309,-500.0,0.00013808,2]
[332063784,1720947060319,-756.58,0.00013808,2]
[332063785,1720947060328,-500.0,0.00013808,2]
[332063786,1720947060338,-500.0,0.00013808,2]
[332063787,1720947060347,-500.0,0.00013808,2]
[332063788,1720947060356,-500.0,0.00013808,2]
[332063789,1720947060366,-500.0,0.00013808,2]
[332063790,1720947060376,-151.0,0.00013808,2]
[332063791,1720947060386,-500.0,0.00013808,2]
[332063792,1720947060396,-1272.63,0.00013808,2]
[332063793,1720947060406,-500.0,0.00013808,2]
[332063794,1720947060417,-500.0,0.00013808,2]
[332063795,1720947060428,-500.0,0.00013808,2]
[332063796,1720947060440,-816.76,0.00013808,2]
[332063797,1720947060452,-500.0,0.00013808,2]
[332063798,1720947060463,-1002.26,0.00013808,2]
[332063799,1720947060477,-670.68,0.00013808,2]
[332063800,1720947060487,-735.91,0.00013808,2]
[332063801,1720947060502,-500.0,0.00013808,2]
[332063802,1720947060513,-979.24,0.00013808,2]
[332063803,1720947060523,-500.0,0.00013808,2]
[332063804,1720947060533,-500.0,0.00013808,2]
[332063805,1720947060543,-500.0,0.00013808,2]
[332063806,1720947060555,-500.0,0.00013808,2]
[332063807,1720947060564,-385.22813881,0.00013808,2]
[332063808,1720947060585,-308.095,0.00013808,2]
[332063809,1720947060597,-712.92686119,0.00013808,2]
[332063810,1720947060606,-500.0,0.00013808,2]
[332063811,1720947060616,-500.0,0.00013808,2]
[332063812,1720947060625,-260.91551144,0.00013808,2]
[332063813,1720947060637,-239.08448856,0.00013808,2]
[332063814,1720947060647,-199.20551144,0.00013808,2]
[332063815,1720947060659,-816.92448856,0.00013808,2]
[332063816,1720947060668,-158.50289481,0.00013808,2]
[332063817,1720947060686,-500.0,0.00013753,2]
[332063818,1720947060695,-6.89261799,0.00013808,2]
[332063819,1720947060706,-255.53745705,0.00013808,2]
[332063820,1720947060717,-1129.86703015,0.00013808,2]
[332063821,1720947060727,-1164.55,0.00013808,2]
[332063822,1720947060736,-500.0,0.00013808,2]
[332063823,1720947060746,-602.2,0.00013808,2]
[332063824,1720947060755,-500.0,0.00013808,2]
[332063825,1720947060764,-151.0,0.00013808,2]
[332063826,1720947060774,-1311.46,0.00013808,2]
[332063827,1720947060784,-500.0,0.00013808,2]
[332063828,1720947060793,-500.0,0.00013808,2]
[332063829,1720947060803,-500.0,0.00013808,2]
[332063830,1720947060812,-604.04,0.00013808,2]
[332063831,1720947060822,-500.0,0.00013808,2]
[332063832,1720947060831,-500.0,0.00013808,2]
[332063833,1720947060841,-272.446201,0.00013808,2]
[332063834,1720947060850,-500.0,0.00013808,2]
[332063835,1720947060860,-500.0,0.00013808,2]
[332063836,1720947060870,-322.08120884,0.00013808,2]
[332063837,1720947060898,-177.91879116,0.00013808,2]
[332063838,1720947060908,-236.16584304,0.00013808,2]
[332063839,1720947060919,-263.83415696,0.00013808,2]
[332063840,1720947060929,-500.0,0.00013808,2]
[332063841,1720947060938,-573.09,0.00013808,2]
[332063842,1720947060948,-500.0,0.00013808,2]
[332063843,1720947060957,-1334.97647029,0.00013808,2]
[332063844,1720947060975,-125.32352971,0.00013808,2]
[332063845,1720947060984,-500.0,0.00013808,2]
[332063846,1720947060994,-829.1,0.00013808,2]
[332063847,1720947061004,-1237.7125612,0.00013808,2]
[332063848,1720947061016,-404.4574388,0.00013808,2]
[332063849,1720947061026,-500.0,0.00013808,2]
[332063850,1720947061036,-500.0,0.00013808,2]
[332063851,1720947061045,-500.0,0.00013808,2]
[332063852,1720947061054,-500.0,0.00013808,2]
[332063853,1720947061064,-500.0,0.00013808,2]
[332063854,1720947061073,-500.0,0.00013808,2]
[332063855,1720947061082,-500.0,0.00013808,2]
[332063856,1720947061091,-151.0,0.00013808,2]
[332063857,1720947061101,-1210.98,0.00013808,2]
[332063858,1720947061110,-858.66,0.00013808,2]
[332063859,1720947061120,-675.59,0.00013808,2]
[332063860,1720947061129,-759.33,0.00013808,2]
[332063861,1720947061138,-422.39,0.00013808,2]
[332063862,1720947061148,-500.0,0.00013808,2]
[332063863,1720947061157,-500.0,0.00013808,2]
[332063864,1720947061166,-986.53,0.00013808,2]
[332063865,1720947061176,-609.44,0.00013808,2]
[332063866,1720947061185,-1851.66,0.00013808,2]
[332063867,1720947061195,-500.0,0.00013808,2]
[332063868,1720947061204,-500.0,0.00013808,2]
[332063869,1720947061213,-568.76077263,0.00013808,2]
[332063870,1720947061222,-564.92,0.00013808,2]
[332063871,1720947061231,-500.0,0.00013808,2]
[332063872,1720947061240,-590.1,0.00013808,2]
[332063873,1720947061249,-1347.43,0.00013808,2]
[332063874,1720947061260,-1099.72,0.00013808,2]
[332063875,1720947061270,-920.66,0.00013808,2]
[332063876,1720947061281,-880.89,0.00013808,2]
[332063877,1720947061292,-151.0,0.00013808,2]
[332063878,1720947061549,-151.0,0.00013808,2]
[332063879,1720947061561,-500.0,0.00013808,2]
[332063880,1720947061572,-500.0,0.00013808,2]
[332063881,1720947061581,-551.34,0.00013808,2]
[332063882,1720947061591,-500.0,0.00013808,2]
[332063883,1720947061601,-151.0,0.00013808,2]
[332063884,1720947061610,-151.0,0.00013808,2]
[332063885,1720947061619,-1945.93,0.00013808,2]
[332063886,1720947061629,-896.21,0.00013808,2]
[332063887,1720947061638,-1044.03,0.00013808,2]
[332063888,1720947061648,-151.0,0.00013808,2]
[332063889,1720947061657,-151.0,0.00013808,2]
[332063890,1720947061666,-500.0,0.00013808,2]
[332063891,1720947061675,-500.0,0.00013808,2]
[332063892,1720947061684,-151.0,0.00013808,2]
[332063893,1720947061693,-151.0,0.00013808,2]
[332063894,1720947061703,-500.0,0.00013808,2]
[332063895,1720947061713,-500.0,0.00013808,2]
[332063896,1720947061722,-500.0,0.00013808,2]
[332063897,1720947061732,-151.0,0.00013808,2]
[332063898,1720947061741,-151.0,0.00013808,2]
[332063899,1720947061750,-798.5,0.00013808,2]
[332063900,1720947061759,-500.0,0.00013808,2]
[332063901,1720947061768,-892.29,0.00013808,2]
[332063902,1720947061778,-674.09,0.00013808,2]
[332063903,1720947061787,-500.0,0.00013808,2]
[332063904,1720947061796,-500.0,0.00013808,2]
[332063905,1720947061805,-151.0,0.00013808,2]
[332063906,1720947061814,-151.0,0.00013808,2]
[332063907,1720947061824,-500.0,0.00013808,2]
[332063908,1720947061833,-1308.83,0.00013808,2]
[332063909,1720947061842,-500.0,0.00013808,2]
[332063910,1720947061852,-500.0,0.00013808,2]
[332063911,1720947061861,-1277.01,0.00013808,2]
[332063912,1720947061870,-500.0,0.00013808,2]
[332063913,1720947061880,-773.51,0.00013808,2]
[332063914,1720947061890,-500.0,0.00013808,2]
[332063915,1720947061899,-500.0,0.00013808,2]
[332063916,1720947061909,-500.0,0.00013808,2]
[332063917,1720947061919,-556.94380196,0.00013808,2]
[332063918,1720947061928,-500.0,0.00013808,2]
[332063919,1720947061937,-500.0,0.00013808,2]
[332063920,1720947061946,-1235.94,0.00013808,2]
[332063921,1720947061956,-1123.01,0.00013808,2]
[332063922,1720947061965,-837.86,0.00013808,2]
[332063923,1720947061974,-500.0,0.00013808,2]
[332063924,1720947061983,-711.96,0.00013808,2]
[332063925,1720947061993,-500.18,0.00013808,2]
[332063926,1720947062002,-220.41251036,0.00013808,2]
[332063927,1720947062018,-915.93748964,0.00013808,2]
[332063928,1720947062027,-464.83568344,0.00013808,2]
[332063929,1720947062037,-1609.9,0.00013808,2]
[332063930,1720947062047,-83.58132692,0.00013808,2]
[332063931,1720947062058,-443.11867308,0.00013808,2]
[332063932,1720947062068,-916.2,0.00013808,2]
[332063933,1720947062077,-500.0,0.00013808,2]
[332063934,1720947062086,-500.0,0.00013808,2]
[332063935,1720947062095,-500.0,0.00013808,2]
[332063936,1720947062105,-564.4,0.00013808,2]
[332063937,1720947062114,-500.0,0.00013808,2]
[332063938,1720947062123,-500.0,0.00013808,2]
[332063939,1720947062133,-500.0,0.00013808,2]
[332063940,1720947062142,-533.2,0.00013808,2]
[332063941,1720947062151,-500.0,0.00013808,2]
[332063942,1720947062160,-104.98092692,0.00013808,2]
[332063943,1720947062172,-395.01907308,0.00013808,2]
[332063944,1720947062182,-500.0,0.00013808,2]
[332063945,1720947062191,-1141.86,0.00013808,2]
[332063946,1720947062200,-500.0,0.00013808,2]
[332063947,1720947062210,-608.99,0.00013808,2]
[332063948,1720947062220,-500.0,0.00013808,2]
[332063949,1720947062229,-411.16338986,0.00013808,2]
[332063950,1720947062239,-1775.32,0.00013808,2]
[332063951,1720947062248,-500.0,0.00013808,2]
[332063952,1720947062274,-592.67,0.00013808,2]
[332063953,1720947062283,-500.0,0.00013808,2]
[332063954,1720947062293,-1440.72,0.00013808,2]
[332063955,1720947062302,-500.0,0.00013808,2]
[332063956,1720947062311,-1071.83,0.00013808,2]
[332063957,1720947062321,-1048.18753706,0.00013808,2]
[332063958,1720947062333,-230.65246294,0.00013808,2]
[332063959,1720947062343,-1050.62,0.00013808,2]
[332063960,1720947062353,-903.13559155,0.00013808,2]
[332063961,1720947062388,-129.85440845,0.00013808,2]
[332063962,1720947062397,-500.0,0.00013808,2]
[332063963,1720947062407,-500.0,0.00013808,2]
[332063964,1720947062418,-290.50218173,0.00013808,2]
[332063965,1720947062838,-1445.92629086,0.00013695,2]
[332063966,1720947062848,-732.36,0.00013698,2]
[332063967,1720947062857,-500.0,0.00013698,2]
[332063968,1720947062866,-732.36,0.00013753,2]
[332063969,1720947062875,-500.0,0.00013753,2]
[332063970,1720947062885,-1445.92629086,0.00013805,2]
[332063971,1720947062894,-209.49781827,0.00013808,2]
[332063972,1720947062903,-1860.15,0.00013808,2]
[332063973,1720947062912,-1390.63,0.00013808,2]
[332063974,1720947062922,-830.59,0.00013808,2]
[332063975,1720947062931,-500.0,0.00013808,2]
[332063976,1720947062941,-190.5031325,0.00013808,2]
[332063977,1720947062952,-584.8368675,0.00013808,2]
[332063978,1720947062961,-552.05,0.00013808,2]
[332063979,1720947062971,-351.03747549,0.00013808,2]
[332063980,1720947062982,-387.72733961,0.00013808,2]
[332063981,1720947062993,-357.2751849,0.00013808,2]
[332063982,1720947063002,-500.0,0.00013808,2]
[332063983,1720947063011,-948.54,0.00013808,2]
[332063984,1720947063020,-500.0,0.00013808,2]
[332063985,1720947063030,-694.55,0.00013808,2]
[332063986,1720947063040,-405.01325769,0.00013808,2]
[332063987,1720947063055,-443.70674231,0.00013808,2]
[332063988,1720947063065,-500.0,0.00013808,2]
[332063989,1720947063074,-500.0,0.00013808,2]
[332063990,1720947063084,-500.0,0.00013808,2]
[332063991,1720947063094,-500.0,0.00013808,2]
[332063992,1720947063103,-992.38,0.00013808,2]
[332063993,1720947063113,-565.78,0.00013808,2]
[332063994,1720947063122,-1781.92,0.00013808,2]
[332063995,1720947063132,-500.0,0.00013808,2]
[332063996,1720947063141,-897.05,0.00013808,2]
[332063997,1720947063151,-1360.9,0.00013808,2]
[332063998,1720947063160,-696.39,0.00013808,2]
[332063999,1720947063169,-500.0,0.00013808,2]
[332064000,1720947063179,-1301.35,0.00013808,2]
[332064001,1720947063188,-500.0,0.00013808,2]
[332064002,1720947063197,-500.0,0.00013808,2]
[332064003,1720947063207,-823.13,0.00013808,2]
[332064004,1720947063216,-500.0,0.00013808,2]
[332064005,1720947063226,-1622.83,0.00013808,2]
[332064006,1720947063235,-244.186025,0.00013808,2]
[332064007,1720947063245,-507.26,0.00013808,2]
[332064008,1720947063254,-500.0,0.00013808,2]
[332064009,1720947063263,-244.186025,0.00013808,2]
[332064010,1720947063273,-500.0,0.00013808,2]
[332064011,1720947063282,-1935.6,0.00013808,2]
[332064012,1720947063292,-1375.77,0.00013808,2]
[332064013,1720947063302,-585.8,0.00013808,2]
[332064014,1720947063312,-500.0,0.00013808,2]
[332064015,1720947063321,-647.64,0.00013808,2]
[332064016,1720947063331,-500.0,0.00013808,2]
[332064017,1720947063341,-500.0,0.00013808,2]
[332064018,1720947063350,-500.0,0.00013808,2]
[332064019,1720947063360,-597.66,0.00013808,2]
[332064020,1720947063370,-500.0,0.00013808,2]
[332064021,1720947063380,-1201.98,0.00013808,2]
[332064022,1720947063389,-500.0,0.00013808,2]
[332064023,1720947063399,-500.0,0.00013808,2]
[332064024,1720947063409,-500.0,0.00013808,2]
[332064025,1720947063419,-500.0,0.00013808,2]
[332064026,1720947063428,-500.0,0.00013808,2]
[332064027,1720947063438,-500.0,0.00013808,2]
[332064028,1720947063447,-667.26,0.00013808,2]
[332064029,1720947063457,-958.34,0.00013808,2]
[332064030,1720947063467,-500.0,0.00013808,2]
[332064031,1720947063477,-500.0,0.00013808,2]
[332064032,1720947063488,-1016.75,0.00013808,2]
[332064033,1720947063497,-500.0,0.00013808,2]
[332064034,1720947063507,-978.03,0.00013808,2]
[332064035,1720947063517,-607.39,0.00013808,2]
[332064036,1720947063527,-459.55387709,0.00013808,2]
[332064037,1720947063536,-500.0,0.00013808,2]
[332064038,1720947063546,-500.0,0.00013808,2]
[332064039,1720947063556,-951.55,0.00013808,2]
[332064040,1720947063570,-849.47,0.00013808,2]
[332064041,1720947063583,-151.0,0.00013808,2]
[332064042,1720947063593,-1097.99,0.00013808,2]
[332064043,1720947063603,-151.0,0.00013808,2]
[332064044,1720947063613,-500.0,0.00013808,2]
[332064045,1720947063623,-1336.9,0.00013808,2]
[332064046,1720947063633,-1252.98,0.00013808,2]
[332064047,1720947063642,-500.0,0.00013808,2]
[332064048,1720947063652,-151.0,0.00013808,2]
[332064049,1720947063663,-500.0,0.00013808,2]
[332064050,1720947063673,-575.08,0.00013808,2]
[332064051,1720947063682,-701.0,0.00013808,2]
[332064052,1720947063691,-500.0,0.00013808,2]
[332064053,1720947063701,-500.0,0.00013808,2]
[332064054,1720947063710,-500.0,0.00013808,2]
[332064055,1720947063719,-500.0,0.00013808,2]
[332064056,1720947063728,-729.85,0.00013808,2]
[332064057,1720947063738,-500.0,0.00013808,2]
[332064058,1720947063747,-760.39,0.00013808,2]
[332064059,1720947063765,-500.0,0.00013808,2]
[332064060,1720947063775,-500.0,0.00013808,2]
[332064061,1720947063784,-500.0,0.00013808,2]
[332064062,1720947063793,-567.9,0.00013808,2]
[332064063,1720947063806,-500.0,0.00013808,2]
[332064064,1720947063815,-500.0,0.00013808,2]
[332064065,1720947063824,-500.0,0.00013808,2]
[332064066,1720947063833,-572.49,0.00013808,2]
[332064067,1720947063844,-500.0,0.00013808,2]
[332064068,1720947063854,-500.0,0.00013808,2]
[332064069,1720947063863,-500.0,0.00013808,2]
[332064070,1720947063871,-151.0,0.00013808,2]
[332064071,1720947063881,-904.83,0.00013808,2]
[332064072,1720947063952,-500.0,0.00013808,2]
[332064073,1720947063962,-904.78,0.00013808,2]
[332064074,1720947063971,-500.0,0.00013808,2]
[332064075,1720947063980,-500.0,0.00013808,2]
[332064076,1720947063989,-509.21,0.00013808,2]
[332064077,1720947063998,-500.0,0.00013808,2]
[332064078,1720947064007,-682.68,0.00013808,2]
[332064079,1720947064017,-1095.11,0.00013808,2]
[332064080,1720947064026,-509.03,0.00013808,2]
[332064081,1720947064035,-500.0,0.00013808,2]
[332064082,1720947064044,-500.0,0.00013808,2]
[332064083,1720947064053,-278.42708923,0.00013808,2]
[332064084,1720947064063,-500.0,0.00013808,2]
[332064085,1720947064072,-500.0,0.00013808,2]
[332064086,1720947064081,-500.0,0.00013808,2]
[332064087,1720947064091,-756.52,0.00013808,2]
[332064088,1720947064100,-784.66,0.00013808,2]
[332064089,1720947064110,-500.0,0.00013808,2]
[332064090,1720947064119,-500.0,0.00013808,2]
[332064091,1720947064128,-1185.22,0.00013808,2]
[332064092,1720947064137,-925.63,0.00013808,2]
[332064093,1720947064146,-500.0,0.00013808,2]
[332064094,1720947064156,-297.936491,0.00013808,2]
[332064095,1720947064166,-638.28,0.00013808,2]
[332064096,1720947064176,-500.0,0.00013808,2]
[332064097,1720947064185,-500.0,0.00013808,2]
[332064098,1720947064194,-957.88,0.00013808,2]
[332064099,1720947064204,-844.6,0.00013808,2]
[332064100,1720947064213,-297.936491,0.00013808,2]
[332064101,1720947064222,-500.0,0.00013808,2]
[332064102,1720947064231,-913.64,0.00013808,2]
[332064103,1720947064240,-500.0,0.00013808,2]
[332064104,1720947064249,-500.0,0.00013808,2]
[332064105,1720947064275,-1051.87,0.00013808,2]
[332064106,1720947064284,-507.28,0.00013808,2]
[332064107,1720947064294,-500.0,0.00013808,2]
[332064108,1720947064303,-622.1,0.00013808,2]
[332064109,1720947064313,-939.55,0.00013808,2]
[332064110,1720947064322,-713.47,0.00013808,2]
[332064111,1720947064331,-860.51,0.00013808,2]
[332064112,1720947064341,-151.0,0.00013808,2]
[332064113,1720947064350,-500.0,0.00013808,2]
[332064114,1720947064360,-1114.15,0.00013808,2]
[332064115,1720947064369,-500.0,0.00013808,2]
[332064116,1720947064378,-500.0,0.00013808,2]
[332064117,1720947064387,-500.0,0.00013808,2]
[332064118,1720947064397,-1149.2,0.00013808,2]
[332064119,1720947064407,-637.98,0.00013808,2]
[332064120,1720947064416,-990.56,0.00013808,2]
[332064121,1720947064425,-500.0,0.00013808,2]
[332064122,1720947064435,-1660.12,0.00013808,2]
[332064123,1720947064444,-355.629917,0.00013808,2]
[332064124,1720947064454,-1165.53,0.00013808,2]
[332064125,1720947064463,-500.0,0.00013808,2]
[332064126,1720947064473,-500.0,0.00013808,2]
[332064127,1720947064483,-772.82,0.00013808,2]
[332064128,1720947064494,-500.0,0.00013808,2]
[332064129,1720947064511,-500.0,0.00013808,2]
[332064130,1720947064522,-355.629917,0.00013808,2]
[332064131,1720947064532,-500.0,0.00013808,2]
[332064132,1720947064541,-500.0,0.00013808,2]
[332064133,1720947064550,-500.0,0.00013808,2]
[332064134,1720947064561,-846.67,0.00013808,2]
[332064135,1720947064571,-780.44,0.00013808,2]
[332064136,1720947064580,-817.86,0.00013808,2]
[332064137,1720947064589,-500.0,0.00013808,2]
[332064138,1720947064599,-738.59,0.00013808,2]
[332064139,1720947064609,-500.0,0.00013808,2]
[332064140,1720947064618,-747.33,0.00013808,2]
[332064141,1720947064628,-500.0,0.00013808,2]
[332064142,1720947064637,-500.0,0.00013808,2]
[332064143,1720947064647,-500.0,0.00013808,2]
[332064144,1720947064656,-500.0,0.00013808,2]
[332064145,1720947064665,-579.35,0.00013808,2]
[332064146,1720947064674,-1099.8,0.00013808,2]
[332064147,1720947064683,-1233.5,0.00013808,2]
[332064148,1720947064692,-458.7224791,0.00013808,2]
[332064149,1720947064701,-936.65,0.00013808,2]
[332064150,1720947064710,-500.0,0.00013808,2]
[332064151,1720947064719,-678.54,0.00013808,2]
[332064152,1720947064729,-510.01,0.00013808,2]
[332064153,1720947064738,-500.0,0.00013808,2]
[332064154,1720947064747,-799.52,0.00013808,2]
[332064155,1720947064763,-983.06,0.00013808,2]
[332064156,1720947064772,-500.0,0.00013808,2]
[332064157,1720947064782,-560.27,0.00013808,2]
[332064158,1720947064791,-638.34,0.00013808,2]
[332064159,1720947064800,-500.0,0.00013808,2]
[332064160,1720947064810,-500.0,0.00013808,2]
[332064161,1720947064819,-1070.73,0.00013808,2]
[332064162,1720947064828,-500.0,0.00013808,2]
[332064163,1720947064837,-500.0,0.00013808,2]
[332064164,1720947064847,-500.0,0.00013808,2]
[332064165,1720947064856,-151.0,0.00013808,2]
[332064166,1720947064865,-500.0,0.00013808,2]
[332064167,1720947064875,-151.0,0.00013808,2]
[332064168,1720947064884,-773.87,0.00013808,2]
[332064169,1720947064894,-500.0,0.00013808,2]
[332064170,1720947064903,-914.03,0.00013808,2]
[332064171,1720947064912,-151.0,0.00013808,2]
[332064172,1720947064922,-1043.98,0.00013808,2]
[332064173,1720947064931,-1315.08,0.00013808,2]
[332064174,1720947064940,-151.0,0.00013808,2]
[332064175,1720947064950,-571.39,0.00013808,2]
[332064176,1720947064960,-500.0,0.00013808,2]
[332064177,1720947064969,-500.0,0.00013808,2]
[332064178,1720947064978,-833.58,0.00013808,2]
[332064179,1720947064987,-816.75,0.00013808,2]
[332064180,1720947064996,-500.0,0.00013808,2]
[332064181,1720947065008,-1418.44,0.00013808,2]
[332064182,1720947065018,-708.02,0.00013808,2]
[332064183,1720947065027,-1584.7,0.00013808,2]
[332064184,1720947065036,-500.0,0.00013808,2]
[332064185,1720947065045,-500.0,0.00013808,2]
[332064186,1720947065054,-500.0,0.00013808,2]
[332064187,1720947065063,-500.0,0.00013808,2]
[332064188,1720947065072,-500.0,0.00013808,2]
[332064189,1720947065081,-763.32,0.00013808,2]
[332064190,1720947065091,-974.62,0.00013808,2]
[332064191,1720947065101,-500.0,0.00013808,2]
[332064192,1720947065110,-500.0,0.00013808,2]
[332064193,1720947065119,-666.0,0.00013808,2]
[332064194,1720947065128,-635.69,0.00013808,2]
[332064195,1720947065137,-500.0,0.00013808,2]
[332064196,1720947065147,-664.93,0.00013808,2]
[332064197,1720947065156,-935.55,0.00013808,2]
[332064198,1720947065165,-500.0,0.00013808,2]
[332064199,1720947065174,-500.0,0.00013808,2]
[332064200,1720947065184,-1460.2,0.00013808,2]
[332064201,1720947065193,-500.0,0.00013808,2]
[332064202,1720947065202,-500.0,0.00013808,2]
[332064203,1720947065211,-1032.43,0.00013808,2]
[332064204,1720947065220,-1904.64,0.00013808,2]
[332064205,1720947065230,-500.0,0.00013808,2]
[332064206,1720947065239,-500.0,0.00013808,2]
[332064207,1720947065249,-711.57,0.00013808,2]
[332064208,1720947065259,-500.0,0.00013808,2]
[332064209,1720947065268,-151.0,0.00013808,2]
[332064210,1720947065278,-151.0,0.00013808,2]
[332064211,1720947065287,-500.0,0.00013808,2]
[332064212,1720947065297,-500.0,0.00013808,2]
[332064213,1720947065306,-639.19,0.00013808,2]
[332064214,1720947065315,-500.0,0.00013808,2]
[332064215,1720947065324,-173.50509877,0.00013808,2]
[332064216,1720947065334,-1462.85,0.00013808,2]
[332064217,1720947065343,-500.0,0.00013808,2]
[332064218,1720947065352,-500.0,0.00013808,2]
[332064219,1720947065362,-1019.09,0.00013808,2]
[332064220,1720947065371,-500.0,0.00013808,2]
[332064221,1720947065380,-1954.78,0.00013808,2]
[332064222,1720947065389,-1900.61,0.00013808,2]
[332064223,1720947065398,-1133.11,0.00013808,2]